[Event "Early-Titled-Tuesday-Blitz-August-29-2023"]
[Site "Chess.com"]
[Date "2023.08.29"]
[Round "5"]
[White "regular_legs"]
[Black "Verony64"]
[Result "1-0"]
[WhiteElo "2532"]
[BlackElo "2270"]
[TimeControl "180+1"]
[EndTime "8:55:54 PDT"]
[Termination "regular_legs won by resignation"]

1. d4 {[%clk 0:02:57.7]} 1... d6 {[%clk 0:03:00.9]} 2. e4 {[%clk 0:02:54.5]}
2... c6 {[%clk 0:02:59.6]} 3. c4 {[%clk 0:02:50.5]} 3... Nd7 {[%clk 0:02:59.9]}
4. Nc3 {[%clk 0:02:50.3]} 4... e5 {[%clk 0:03:00.3]} 5. Nge2 {[%clk 0:02:49.8]}
5... Be7 {[%clk 0:02:57.6]} 6. d5 {[%clk 0:02:42.3]} 6... c5 {[%clk 0:02:55.3]}
7. Ng3 {[%clk 0:02:30.5]} 7... g6 {[%clk 0:02:53.4]} 8. Bd3 {[%clk 0:02:29.7]}
8... a6 {[%clk 0:02:50.6]} 9. O-O {[%clk 0:02:19.1]} 9... Bf6 {[%clk 0:02:48.9]}
10. Rb1 {[%clk 0:02:13.9]} 10... Ne7 {[%clk 0:02:45.8]} 11. a3 {[%clk
0:02:09.5]} 11... O-O {[%clk 0:02:43.5]} 12. b4 {[%clk 0:02:08.9]} 12... Bg7
{[%clk 0:02:38.3]} 13. Qc2 {[%clk 0:01:50.4]} 13... h6 {[%clk 0:02:28.4]} 14.
Be3 {[%clk 0:01:45.3]} 14... b6 {[%clk 0:02:27.1]} 15. f3 {[%clk 0:01:41.3]}
15... Nf6 {[%clk 0:02:08.2]} 16. Rb2 {[%clk 0:01:40]} 16... Nh7 {[%clk
0:02:04.8]} 17. bxc5 {[%clk 0:01:11.4]} 17... bxc5 {[%clk 0:02:01.9]} 18. Qd2
{[%clk 0:01:08.3]} 18... g5 {[%clk 0:01:53.7]} 19. Na4 {[%clk 0:01:04.3]} 19...
Ng6 {[%clk 0:01:52.2]} 20. Nb6 {[%clk 0:01:03.6]} 20... Rb8 {[%clk 0:01:49.2]}
21. Rfb1 {[%clk 0:01:00.2]} 21... Nf4 {[%clk 0:01:42.1]} 22. Bf1 {[%clk
0:00:58.3]} 22... Qc7 {[%clk 0:01:12.8]} 23. Nxc8 {[%clk 0:00:57.1]} 23... Rbxc8
{[%clk 0:01:04.3]} 24. Nf5 {[%clk 0:00:56.5]} 24... Rb8 {[%clk 0:00:51.2]} 25.
g3 {[%clk 0:00:55.9]} 25... Ng6 {[%clk 0:00:46.5]} 26. Qc2 {[%clk 0:00:53.8]}
26... Nf6 {[%clk 0:00:42.4]} 27. Bd2 {[%clk 0:00:47.1]} 27... Rfe8 {[%clk
0:00:29.8]} 28. Bh3 {[%clk 0:00:45.9]} 28... Bf8 {[%clk 0:00:29.1]} 29. Qa4
{[%clk 0:00:37.6]} 29... Rxb2 {[%clk 0:00:23.4]} 30. Rxb2 {[%clk 0:00:38.5]}
30... Rb8 {[%clk 0:00:23.3]} 31. Qc2 {[%clk 0:00:18.2]} 31... Rb7 {[%clk
0:00:20]} 32. Kf2 {[%clk 0:00:17.9]} 32... Qb8 {[%clk 0:00:19.8]} 33. Bc1 {[%clk
0:00:17.9]} 33... Ne8 {[%clk 0:00:15.3]} 34. Ke1 {[%clk 0:00:17.3]} 34... Ne7
{[%clk 0:00:14.8]} 35. Ne3 {[%clk 0:00:15]} 35... Nc7 {[%clk 0:00:12.9]} 36.
Rxb7 {[%clk 0:00:13.4]} 36... Qxb7 {[%clk 0:00:13.1]} 37. Qb2 {[%clk 0:00:11.2]}
37... Qxb2 {[%clk 0:00:12.6]} 38. Bxb2 {[%clk 0:00:12.1]} 38... Nc8 {[%clk
0:00:11.1]} 39. Bc3 {[%clk 0:00:12.6]} 39... Nb6 {[%clk 0:00:11.2]} 40. Kd2
{[%clk 0:00:13.1]} 40... Na4 {[%clk 0:00:11.3]} 41. Ba5 {[%clk 0:00:13.3]} 41...
Ne8 {[%clk 0:00:11.1]} 42. Kc2 {[%clk 0:00:13.7]} 42... Be7 {[%clk 0:00:11.6]}
43. Kb3 {[%clk 0:00:13.6]} 43... g4 {[%clk 0:00:08.8]} 44. Bxg4 {[%clk
0:00:12.6]} 44... Bg5 {[%clk 0:00:09.2]} 45. Nf5 {[%clk 0:00:10.7]} 45... Ng7
{[%clk 0:00:05.2]} 46. Nxg7 {[%clk 0:00:10.6]} 46... Kxg7 {[%clk 0:00:05.3]} 47.
Kxa4 {[%clk 0:00:11.1]} 47... Be3 {[%clk 0:00:05.1]} 48. Bc7 {[%clk 0:00:11]}
48... Bg1 {[%clk 0:00:05]} 49. h3 {[%clk 0:00:10.2]} 49... Bh2 {[%clk
0:00:05.9]} 50. Bxd6 {[%clk 0:00:10.5]} 50... Bxg3 {[%clk 0:00:05.1]} 51. Bxc5
{[%clk 0:00:10.5]} 51... Kf6 {[%clk 0:00:05.1]} 52. Bd6 {[%clk 0:00:10.8]} 52...
Kg5 {[%clk 0:00:06]} 53. c5 {[%clk 0:00:11]} 53... h5 {[%clk 0:00:06.9]} 54. Bf5
{[%clk 0:00:10.3]} 54... Kf4 {[%clk 0:00:07]} 55. c6 {[%clk 0:00:10.7]} 55...
Kxf3 {[%clk 0:00:07.5]} 56. c7 {[%clk 0:00:11.2]} 56... Kf4 {[%clk 0:00:06.7]}
57. c8=Q {[%clk 0:00:12.1]} 57... h4 {[%clk 0:00:07.3]} 58. Qc1+ {[%clk
0:00:12.1]} 1-0

[Event "Early-Titled-Tuesday-Blitz-August-29-2023"]
[Site "Chess.com"]
[Date "2023.08.29"]
[Round "5"]
[White "EvgenyBurmakin"]
[Black "Ducke13"]
[Result "0-1"]
[WhiteElo "2267"]
[BlackElo "2430"]
[TimeControl "180+1"]
[EndTime "8:55:54 PDT"]
[Termination "Ducke13 won on time"]

1. e4 {[%clk 0:01:18.4]} 1... c5 {[%clk 0:02:57.3]} 2. Nc3 {[%clk 0:01:18.3]}
2... d6 {[%clk 0:02:57.9]} 3. Bb5+ {[%clk 0:01:18.2]} 3... Bd7 {[%clk
0:02:56.6]} 4. a4 {[%clk 0:01:17.6]} 4... e6 {[%clk 0:02:50.1]} 5. f4 {[%clk
0:01:16.9]} 5... Ne7 {[%clk 0:02:50.4]} 6. Nf3 {[%clk 0:01:16.3]} 6... g6 {[%clk
0:02:46.5]} 7. O-O {[%clk 0:01:16.1]} 7... Bg7 {[%clk 0:02:46.5]} 8. d3 {[%clk
0:01:14.9]} 8... a6 {[%clk 0:02:41.2]} 9. Bxd7+ {[%clk 0:01:14.7]} 9... Qxd7
{[%clk 0:02:34.5]} 10. Qe1 {[%clk 0:01:15.1]} 10... Nbc6 {[%clk 0:02:33.3]} 11.
Qh4 {[%clk 0:01:05.9]} 11... Nd4 {[%clk 0:02:31.5]} 12. Nxd4 {[%clk 0:01:04.6]}
12... cxd4 {[%clk 0:02:21.1]} 13. Ne2 {[%clk 0:01:04.2]} 13... f5 {[%clk
0:02:20.9]} 14. c3 {[%clk 0:01:02.4]} 14... fxe4 {[%clk 0:01:45.9]} 15. dxe4
{[%clk 0:01:03.3]} 15... d3 {[%clk 0:01:46.2]} 16. Nd4 {[%clk 0:01:02.5]} 16...
e5 {[%clk 0:01:31.6]} 17. Nf3 {[%clk 0:00:53]} 17... O-O-O {[%clk 0:01:23.7]}
18. Be3 {[%clk 0:00:38.3]} 18... Rdf8 {[%clk 0:01:15]} 19. Rad1 {[%clk
0:00:27.3]} 19... Qxa4 {[%clk 0:01:08.9]} 20. Qxe7 {[%clk 0:00:25.6]} 20... Bf6
{[%clk 0:00:39.8]} 21. Qxd6 {[%clk 0:00:20.2]} 21... Qxe4 {[%clk 0:00:39]} 22.
Bb6 {[%clk 0:00:18.2]} 22... Bd8 {[%clk 0:00:39.4]} 23. Nxe5 {[%clk 0:00:15]}
23... Bxb6+ {[%clk 0:00:34.8]} 24. Qxb6 {[%clk 0:00:15.9]} 24... Rxf4 {[%clk
0:00:29.4]} 25. Rxf4 {[%clk 0:00:15.3]} 25... Qxf4 {[%clk 0:00:29.4]} 26. Qe6+
{[%clk 0:00:13.7]} 26... Kb8 {[%clk 0:00:25.2]} 27. Qd6+ {[%clk 0:00:13.9]}
27... Ka8 {[%clk 0:00:22.2]} 28. Rxd3 {[%clk 0:00:12.3]} 28... Rf8 {[%clk
0:00:20.6]} 29. Rf3 {[%clk 0:00:08.9]} 29... Qc1+ {[%clk 0:00:19]} 30. Kf2
{[%clk 0:00:09.2]} 30... Qxb2+ {[%clk 0:00:18.6]} 31. Kg3 {[%clk 0:00:09.5]}
31... Rxf3+ {[%clk 0:00:16.9]} 32. Nxf3 {[%clk 0:00:09.8]} 32... Qxc3 {[%clk
0:00:16.8]} 33. Qd8+ {[%clk 0:00:08.7]} 33... Ka7 {[%clk 0:00:16.4]} 34. Qd4+
{[%clk 0:00:09.4]} 34... Qxd4 {[%clk 0:00:17]} 35. Nxd4 {[%clk 0:00:10.1]} 35...
Kb6 {[%clk 0:00:17.5]} 36. Kf4 {[%clk 0:00:08.2]} 36... Kc5 {[%clk 0:00:17.7]}
37. Ne6+ {[%clk 0:00:06.9]} 37... Kc4 {[%clk 0:00:16.1]} 38. Kg5 {[%clk
0:00:05.5]} 38... a5 {[%clk 0:00:15.3]} 39. Kh6 {[%clk 0:00:04.7]} 39... a4
{[%clk 0:00:15.7]} 40. Kxh7 {[%clk 0:00:02.1]} 40... a3 {[%clk 0:00:16.3]} 41.
Kxg6 {[%clk 0:00:02.8]} 41... a2 {[%clk 0:00:16.8]} 42. h4 {[%clk 0:00:03.1]}
42... a1=Q {[%clk 0:00:17.4]} 43. h5 {[%clk 0:00:04]} 43... Qe5 {[%clk
0:00:17.3]} 44. Ng5 {[%clk 0:00:03.9]} 44... Qe8+ {[%clk 0:00:17.2]} 45. Kh6
{[%clk 0:00:03.4]} 45... b6 {[%clk 0:00:17.2]} 46. g4 {[%clk 0:00:02.8]} 46...
b5 {[%clk 0:00:17.5]} 47. Kg7 {[%clk 0:00:03.4]} 47... Qe7+ {[%clk 0:00:16.7]}
48. Nf7 {[%clk 0:00:03.5]} 48... Qh4 {[%clk 0:00:14.4]} 49. h6 {[%clk
0:00:02.1]} 49... Qxg4+ {[%clk 0:00:14.6]} 50. Kf8 {[%clk 0:00:02]} 50... Qf5
{[%clk 0:00:13.4]} 0-1

[Event "Early-Titled-Tuesday-Blitz-August-29-2023"]
[Site "Chess.com"]
[Date "2023.08.29"]
[Round "5"]
[White "Truequitos"]
[Black "isaak2009"]
[Result "0-1"]
[WhiteElo "2389"]
[BlackElo "2554"]
[TimeControl "180+1"]
[EndTime "8:55:55 PDT"]
[Termination "isaak2009 won on time"]

1. e4 {[%clk 0:03:00.9]} 1... c6 {[%clk 0:02:55.4]} 2. d4 {[%clk 0:02:57.7]}
2... d5 {[%clk 0:02:56.3]} 3. Nc3 {[%clk 0:02:58.1]} 3... dxe4 {[%clk
0:02:55.1]} 4. Nxe4 {[%clk 0:02:59]} 4... Bf5 {[%clk 0:02:55.6]} 5. Ng3 {[%clk
0:02:54.3]} 5... Bg6 {[%clk 0:02:55.7]} 6. Nf3 {[%clk 0:02:53.4]} 6... Nd7
{[%clk 0:02:54.3]} 7. c3 {[%clk 0:02:48.1]} 7... Ngf6 {[%clk 0:02:51.7]} 8. Bc4
{[%clk 0:02:45.8]} 8... e6 {[%clk 0:02:51.4]} 9. Qe2 {[%clk 0:02:44.6]} 9... Bd6
{[%clk 0:02:48.9]} 10. O-O {[%clk 0:02:44]} 10... Qc7 {[%clk 0:02:46.9]} 11. Re1
{[%clk 0:02:41.3]} 11... O-O {[%clk 0:02:46]} 12. Ne5 {[%clk 0:02:41.1]} 12...
c5 {[%clk 0:02:42.2]} 13. Bg5 {[%clk 0:02:29.2]} 13... a6 {[%clk 0:02:22.8]} 14.
Bb3 {[%clk 0:02:25.8]} 14... b5 {[%clk 0:02:17.2]} 15. Rad1 {[%clk 0:01:58.9]}
15... Rae8 {[%clk 0:02:12.4]} 16. h4 {[%clk 0:01:51.8]} 16... c4 {[%clk
0:01:51.1]} 17. Nxd7 {[%clk 0:01:45.6]} 17... Qxd7 {[%clk 0:01:27.4]} 18. Bc2
{[%clk 0:01:38.6]} 18... Bxc2 {[%clk 0:01:14.3]} 19. Qxc2 {[%clk 0:01:39.5]}
19... Nd5 {[%clk 0:01:12.4]} 20. Ne4 {[%clk 0:01:33]} 20... h6 {[%clk
0:00:45.1]} 21. Bc1 {[%clk 0:01:08.3]} 21... Be7 {[%clk 0:00:43.3]} 22. h5
{[%clk 0:01:03.3]} 22... f5 {[%clk 0:00:34.6]} 23. Nd2 {[%clk 0:00:55.1]} 23...
Bd6 {[%clk 0:00:22.5]} 24. Nf3 {[%clk 0:00:53.7]} 24... Qf7 {[%clk 0:00:22.6]}
25. Ne5 {[%clk 0:00:47.9]} 25... Qxh5 {[%clk 0:00:17.7]} 26. Qe2 {[%clk
0:00:29.8]} 26... Qxe2 {[%clk 0:00:16.5]} 27. Rxe2 {[%clk 0:00:30.7]} 27... Bxe5
{[%clk 0:00:16.9]} 28. Rxe5 {[%clk 0:00:30.7]} 28... Kf7 {[%clk 0:00:17.6]} 29.
Rde1 {[%clk 0:00:31]} 29... Re7 {[%clk 0:00:17.5]} 30. Bd2 {[%clk 0:00:29.2]}
30... Rfe8 {[%clk 0:00:17.8]} 31. g3 {[%clk 0:00:26.9]} 31... g5 {[%clk
0:00:16.8]} 32. f3 {[%clk 0:00:26.2]} 32... Rd7 {[%clk 0:00:15.9]} 33. Ra1
{[%clk 0:00:26]} 33... a5 {[%clk 0:00:08.1]} 34. Kf2 {[%clk 0:00:24.2]} 34...
Rb8 {[%clk 0:00:06.8]} 35. b3 {[%clk 0:00:20.1]} 35... Rc7 {[%clk 0:00:05.3]}
36. Rae1 {[%clk 0:00:17.8]} 36... Rc6 {[%clk 0:00:05.6]} 37. Rh1 {[%clk
0:00:16.1]} 37... Kg6 {[%clk 0:00:05.5]} 38. Rhe1 {[%clk 0:00:16.2]} 38... Rbb6
{[%clk 0:00:06]} 39. g4 {[%clk 0:00:11]} 39... fxg4 {[%clk 0:00:03.9]} 40. fxg4
{[%clk 0:00:11.9]} 40... Ra6 {[%clk 0:00:04]} 41. Kg2 {[%clk 0:00:07.3]} 41...
a4 {[%clk 0:00:04.3]} 42. b4 {[%clk 0:00:06.9]} 42... a3 {[%clk 0:00:02.7]} 43.
Rf1 {[%clk 0:00:07.3]} 43... Kg7 {[%clk 0:00:03.3]} 44. Re2 {[%clk 0:00:07.6]}
44... Rc8 {[%clk 0:00:02.6]} 45. Ref2 {[%clk 0:00:08.1]} 45... Ra7 {[%clk
0:00:02.8]} 46. Kg3 {[%clk 0:00:06.6]} 46... Re7 {[%clk 0:00:03.3]} 47. Re2
{[%clk 0:00:01.9]} 47... Rf7 {[%clk 0:00:02]} 0-1

[Event "Early-Titled-Tuesday-Blitz-August-29-2023"]
[Site "Chess.com"]
[Date "2023.08.29"]
[Round "5"]
[White "Fighterman91"]
[Black "Doomfist26"]
[Result "0-1"]
[WhiteElo "2723"]
[BlackElo "2580"]
[TimeControl "180+1"]
[EndTime "8:55:56 PDT"]
[Termination "Doomfist26 won by checkmate"]

1. e4 {[%clk 0:03:00.3]} 1... e6 {[%clk 0:02:59.2]} 2. d3 {[%clk 0:02:56.8]}
2... d5 {[%clk 0:02:59.3]} 3. Nc3 {[%clk 0:02:56.9]} 3... Nf6 {[%clk 0:02:59.7]}
4. Bd2 {[%clk 0:02:54.4]} 4... Nc6 {[%clk 0:02:59.3]} 5. Nf3 {[%clk 0:02:54.4]}
5... dxe4 {[%clk 0:02:59.2]} 6. Nxe4 {[%clk 0:02:54.2]} 6... Nxe4 {[%clk
0:02:57.2]} 7. dxe4 {[%clk 0:02:54.7]} 7... e5 {[%clk 0:02:54.9]} 8. Bb5 {[%clk
0:02:55]} 8... Bd6 {[%clk 0:02:55]} 9. Bc3 {[%clk 0:02:54.8]} 9... Qe7 {[%clk
0:02:55.1]} 10. O-O {[%clk 0:02:47.7]} 10... O-O {[%clk 0:02:54.9]} 11. h3
{[%clk 0:02:46.9]} 11... Bd7 {[%clk 0:02:51.9]} 12. a4 {[%clk 0:02:44.6]} 12...
Rad8 {[%clk 0:02:50]} 13. Qe2 {[%clk 0:02:43.1]} 13... a6 {[%clk 0:02:49.2]} 14.
Bc4 {[%clk 0:02:42.1]} 14... Bc5 {[%clk 0:02:29.6]} 15. Rfd1 {[%clk 0:02:41.5]}
15... Bc8 {[%clk 0:02:26.5]} 16. Bd5 {[%clk 0:02:28.2]} 16... Nd4 {[%clk
0:02:21.7]} 17. Bxd4 {[%clk 0:02:21.3]} 17... exd4 {[%clk 0:02:20.5]} 18. Bc4
{[%clk 0:01:57.7]} 18... Kh8 {[%clk 0:02:12.6]} 19. e5 {[%clk 0:01:47.6]} 19...
Rfe8 {[%clk 0:01:45.7]} 20. Qe4 {[%clk 0:01:27.3]} 20... f5 {[%clk 0:01:34]} 21.
Qf4 {[%clk 0:01:24.2]} 21... Be6 {[%clk 0:01:29]} 22. Bxe6 {[%clk 0:01:18.8]}
22... Qxe6 {[%clk 0:01:29.4]} 23. Rd3 {[%clk 0:00:33.1]} 23... h6 {[%clk
0:01:04.2]} 24. Re1 {[%clk 0:00:23.6]} 24... Qc4 {[%clk 0:00:28.5]} 25. Qxf5
{[%clk 0:00:22.9]} 25... Qxc2 {[%clk 0:00:26.9]} 26. Nh4 {[%clk 0:00:22.9]}
26... Kg8 {[%clk 0:00:25.6]} 27. Ng6 {[%clk 0:00:21.4]} 27... Bb4 {[%clk
0:00:22]} 28. Rf1 {[%clk 0:00:15.9]} 28... Rd5 {[%clk 0:00:20.7]} 29. b3 {[%clk
0:00:15.4]} 29... Bd6 {[%clk 0:00:18.1]} 30. f4 {[%clk 0:00:14.6]} 30... Bc5
{[%clk 0:00:15.5]} 31. Qe4 {[%clk 0:00:14.8]} 31... Rd6 {[%clk 0:00:14.4]} 32.
h4 {[%clk 0:00:13.3]} 32... Bb6 {[%clk 0:00:11.7]} 33. h5 {[%clk 0:00:13.5]}
33... c5 {[%clk 0:00:12.2]} 34. f5 {[%clk 0:00:13.7]} 34... Ba7 {[%clk
0:00:07.2]} 35. f6 {[%clk 0:00:13.6]} 35... gxf6 {[%clk 0:00:06.5]} 36. Kh2
{[%clk 0:00:10.4]} 36... Rde6 {[%clk 0:00:05]} 37. Qf5 {[%clk 0:00:09.9]} 37...
c4 {[%clk 0:00:04.8]} 38. exf6 {[%clk 0:00:07.8]} 38... Bb8+ {[%clk 0:00:04.9]}
39. Kh3 {[%clk 0:00:08.2]} 39... Kf7 {[%clk 0:00:05.4]} 40. Rdf3 {[%clk
0:00:07.5]} 40... Qxf5+ {[%clk 0:00:04.8]} 41. Rxf5 {[%clk 0:00:08.4]} 41... d3
{[%clk 0:00:04.9]} 42. bxc4 {[%clk 0:00:05.9]} 42... Re3+ {[%clk 0:00:05.5]} 43.
Kg4 {[%clk 0:00:05.4]} 43... d2 {[%clk 0:00:05.9]} 44. Rd5 {[%clk 0:00:05.6]}
44... R8e4+ {[%clk 0:00:06.1]} 45. Nf4 {[%clk 0:00:06.1]} 45... Bxf4 {[%clk
0:00:04.9]} 46. Rxf4 {[%clk 0:00:07]} 46... Re5 {[%clk 0:00:02.5]} 47. Rxd2
{[%clk 0:00:06.6]} 47... Rg5+ {[%clk 0:00:02]} 48. Kh4 {[%clk 0:00:07.1]} 48...
Reg3 {[%clk 0:00:01.6]} 49. Rd7+ {[%clk 0:00:07.2]} 49... Ke6 {[%clk 0:00:02.1]}
50. Rd5 {[%clk 0:00:07.4]} 50... Rxg2 {[%clk 0:00:02.1]} 51. f7 {[%clk
0:00:07.5]} 51... Rh2# {[%clk 0:00:01.7]} 0-1

[Event "Early-Titled-Tuesday-Blitz-August-29-2023"]
[Site "Chess.com"]
[Date "2023.08.29"]
[Round "5"]
[White "RAMBO1STBLOOD"]
[Black "hakanazeri2"]
[Result "0-1"]
[WhiteElo "2258"]
[BlackElo "2699"]
[TimeControl "180+1"]
[EndTime "8:55:59 PDT"]
[Termination "hakanazeri2 won by checkmate"]

1. e4 {[%clk 0:03:00.9]} 1... c5 {[%clk 0:02:57.7]} 2. Nc3 {[%clk 0:03:00.1]}
2... Nc6 {[%clk 0:02:38.1]} 3. Bb5 {[%clk 0:02:59.2]} 3... e6 {[%clk 0:02:31.3]}
4. Bxc6 {[%clk 0:02:58.8]} 4... bxc6 {[%clk 0:02:32.2]} 5. d3 {[%clk 0:02:58.2]}
5... d5 {[%clk 0:02:30.8]} 6. f4 {[%clk 0:02:56.8]} 6... Nf6 {[%clk 0:02:23]} 7.
Nf3 {[%clk 0:02:55.7]} 7... c4 {[%clk 0:02:06.3]} 8. dxc4 {[%clk 0:02:40.2]}
8... Bb4 {[%clk 0:01:58.8]} 9. exd5 {[%clk 0:02:19.7]} 9... cxd5 {[%clk
0:01:55.2]} 10. O-O {[%clk 0:02:01.9]} 10... Bxc3 {[%clk 0:01:52.5]} 11. bxc3
{[%clk 0:02:00.9]} 11... Ba6 {[%clk 0:01:44.9]} 12. Ne5 {[%clk 0:01:55.1]} 12...
Bxc4 {[%clk 0:01:07.2]} 13. Nxc4 {[%clk 0:01:52.3]} 13... dxc4 {[%clk
0:01:08.1]} 14. Ba3 {[%clk 0:01:42.1]} 14... Qxd1 {[%clk 0:00:50.7]} 15. Raxd1
{[%clk 0:01:34]} 15... Nd5 {[%clk 0:00:51.6]} 16. Rf3 {[%clk 0:01:28.5]} 16...
f6 {[%clk 0:00:38.1]} 17. f5 {[%clk 0:01:24.9]} 17... Kf7 {[%clk 0:00:38.1]} 18.
fxe6+ {[%clk 0:01:16.6]} 18... Kxe6 {[%clk 0:00:39]} 19. Rg3 {[%clk 0:00:52.7]}
19... g6 {[%clk 0:00:29.5]} 20. Rg4 {[%clk 0:00:47.1]} 20... Rhd8 {[%clk
0:00:27.8]} 21. Re4+ {[%clk 0:00:38.1]} 21... Kf7 {[%clk 0:00:23.9]} 22. Rxc4
{[%clk 0:00:37.5]} 22... Rd7 {[%clk 0:00:15.6]} 23. Rcd4 {[%clk 0:00:35.5]}
23... Rad8 {[%clk 0:00:15.4]} 24. c4 {[%clk 0:00:35.4]} 24... Nb6 {[%clk
0:00:16]} 25. Rxd7+ {[%clk 0:00:32.3]} 25... Rxd7 {[%clk 0:00:16.9]} 26. Rxd7+
{[%clk 0:00:30.1]} 26... Nxd7 {[%clk 0:00:17.8]} 27. Kf2 {[%clk 0:00:30.5]}
27... Ne5 {[%clk 0:00:17.4]} 28. c5 {[%clk 0:00:30]} 28... Ke6 {[%clk
0:00:18.1]} 29. Bb2 {[%clk 0:00:27.5]} 29... Nc4 {[%clk 0:00:15.7]} 30. Bc3
{[%clk 0:00:22.8]} 30... f5 {[%clk 0:00:15.8]} 31. Bb4 {[%clk 0:00:21.1]} 31...
Kd5 {[%clk 0:00:14.9]} 32. Kf3 {[%clk 0:00:20.9]} 32... a5 {[%clk 0:00:15.3]}
33. Be1 {[%clk 0:00:19.6]} 33... Kxc5 {[%clk 0:00:15.4]} 34. Kf4 {[%clk
0:00:18.8]} 34... h6 {[%clk 0:00:13.2]} 35. Bf2+ {[%clk 0:00:18.9]} 35... Kd5
{[%clk 0:00:13.3]} 36. h4 {[%clk 0:00:18.9]} 36... Nd6 {[%clk 0:00:10.6]} 37. g4
{[%clk 0:00:16.7]} 37... g5+ {[%clk 0:00:08.9]} 38. hxg5 {[%clk 0:00:15.9]}
38... hxg5+ {[%clk 0:00:09.8]} 39. Kf3 {[%clk 0:00:15.8]} 39... f4 {[%clk
0:00:08.4]} 40. Bb6 {[%clk 0:00:14.1]} 40... a4 {[%clk 0:00:08.6]} 41. Bd8
{[%clk 0:00:13.8]} 41... Nf7 {[%clk 0:00:07.8]} 42. Bf6 {[%clk 0:00:13.3]} 42...
Kc4 {[%clk 0:00:08.3]} 43. a3 {[%clk 0:00:12.6]} 43... Kd5 {[%clk 0:00:06.3]}
44. c3 {[%clk 0:00:11]} 44... Ke6 {[%clk 0:00:06.5]} 45. Bd4 {[%clk 0:00:10]}
45... Nd6 {[%clk 0:00:07.1]} 46. Bc5 {[%clk 0:00:08.5]} 46... Nc4 {[%clk
0:00:07.4]} 47. Bb4 {[%clk 0:00:08]} 47... Ne5+ {[%clk 0:00:07.9]} 48. Ke4
{[%clk 0:00:07.4]} 48... Nxg4 {[%clk 0:00:08.6]} 49. c4 {[%clk 0:00:07.6]} 49...
Nf6+ {[%clk 0:00:08.8]} 50. Kf3 {[%clk 0:00:07.4]} 50... Kf5 {[%clk 0:00:09.1]}
51. c5 {[%clk 0:00:07.7]} 51... g4+ {[%clk 0:00:09.7]} 52. Kg2 {[%clk
0:00:07.3]} 52... f3+ {[%clk 0:00:09.7]} 53. Kf2 {[%clk 0:00:07]} 53... Ne4+
{[%clk 0:00:09.9]} 54. Ke3 {[%clk 0:00:06.5]} 54... f2 {[%clk 0:00:10.4]} 55.
Ke2 {[%clk 0:00:06.5]} 55... g3 {[%clk 0:00:11]} 56. c6 {[%clk 0:00:05.9]} 56...
g2 {[%clk 0:00:10.5]} 57. c7 {[%clk 0:00:04]} 57... f1=Q+ {[%clk 0:00:09.9]} 58.
Ke3 {[%clk 0:00:04.4]} 58... g1=Q# {[%clk 0:00:09.7]} 0-1

[Event "Early-Titled-Tuesday-Blitz-August-29-2023"]
[Site "Chess.com"]
[Date "2023.08.29"]
[Round "5"]
[White "joppie2"]
[Black "SRob2003"]
[Result "1/2-1/2"]
[WhiteElo "2936"]
[BlackElo "2649"]
[TimeControl "180+1"]
[EndTime "8:56:00 PDT"]
[Termination "Game drawn by repetition"]

1. e4 {[%clk 0:03:00.9]} 1... c6 {[%clk 0:03:00.2]} 2. Nf3 {[%clk 0:02:59.5]}
2... d5 {[%clk 0:03:00.6]} 3. d3 {[%clk 0:03:00.4]} 3... dxe4 {[%clk 0:03:00.5]}
4. dxe4 {[%clk 0:03:01.1]} 4... Qxd1+ {[%clk 0:03:01.4]} 5. Kxd1 {[%clk
0:03:01.8]} 5... g6 {[%clk 0:03:02.3]} 6. a4 {[%clk 0:02:59.5]} 6... Bh6 {[%clk
0:02:57.5]} 7. a5 {[%clk 0:02:59.2]} 7... Bxc1 {[%clk 0:02:53.2]} 8. Kxc1 {[%clk
0:02:59.1]} 8... Nf6 {[%clk 0:02:53.2]} 9. Nfd2 {[%clk 0:02:58.8]} 9... Nfd7
{[%clk 0:02:50.4]} 10. Nc3 {[%clk 0:02:53.9]} 10... e5 {[%clk 0:02:27.1]} 11. b4
{[%clk 0:02:42]} 11... Ke7 {[%clk 0:02:26.2]} 12. Be2 {[%clk 0:02:37.3]} 12...
f6 {[%clk 0:02:20]} 13. Nb3 {[%clk 0:02:27]} 13... Nf8 {[%clk 0:02:17.6]} 14.
Rd1 {[%clk 0:02:18.9]} 14... Ne6 {[%clk 0:02:15.9]} 15. b5 {[%clk 0:02:10.1]}
15... Nd7 {[%clk 0:02:07.4]} 16. a6 {[%clk 0:02:08.8]} 16... Ndc5 {[%clk
0:02:06.7]} 17. Na5 {[%clk 0:02:00.9]} 17... cxb5 {[%clk 0:01:39.2]} 18. axb7
{[%clk 0:01:58.4]} 18... Bxb7 {[%clk 0:01:39.1]} 19. Nxb7 {[%clk 0:01:58.4]}
19... Nxb7 {[%clk 0:01:40]} 20. Bxb5 {[%clk 0:01:58.4]} 20... Nbc5 {[%clk
0:01:27.6]} 21. Nd5+ {[%clk 0:01:50.9]} 21... Kf7 {[%clk 0:01:27.8]} 22. Bc4
{[%clk 0:01:48.9]} 22... Rhc8 {[%clk 0:01:26.1]} 23. Rb1 {[%clk 0:01:31]} 23...
Rab8 {[%clk 0:01:16.6]} 24. Ra1 {[%clk 0:01:27.6]} 24... Ra8 {[%clk 0:01:16.7]}
25. Ne3 {[%clk 0:01:20.9]} 25... Ke7 {[%clk 0:01:15.1]} 26. f3 {[%clk
0:01:20.8]} 26... a5 {[%clk 0:01:06.3]} 27. c3 {[%clk 0:01:20.6]} 27... Nb3+
{[%clk 0:00:58.2]} 28. Bxb3 {[%clk 0:01:08.8]} 28... Rxc3+ {[%clk 0:00:58.6]}
29. Bc2 {[%clk 0:01:09.5]} 29... Rxe3 {[%clk 0:00:51.6]} 30. Kd2 {[%clk
0:01:10.1]} 30... Rc8 {[%clk 0:00:51.5]} 31. Kxe3 {[%clk 0:01:09.8]} 31... Rxc2
{[%clk 0:00:52]} 32. Rxa5 {[%clk 0:01:07.3]} 32... Nf4 {[%clk 0:00:20.8]} 33.
Ra7+ {[%clk 0:01:00.5]} 33... Ke6 {[%clk 0:00:20.8]} 34. Ra6+ {[%clk 0:01:00.6]}
34... Ke7 {[%clk 0:00:20.9]} 35. Rd2 {[%clk 0:00:54.2]} 35... Nxg2+ {[%clk
0:00:20.8]} 36. Kd3 {[%clk 0:00:54.9]} 36... Ne1+ {[%clk 0:00:19.1]} 37. Ke2
{[%clk 0:00:52.4]} 37... Rxd2+ {[%clk 0:00:18.3]} 38. Kxd2 {[%clk 0:00:53.1]}
38... Nxf3+ {[%clk 0:00:19.1]} 39. Kd3 {[%clk 0:00:53.7]} 39... h5 {[%clk
0:00:14.6]} 40. Kc4 {[%clk 0:00:51]} 40... Nxh2 {[%clk 0:00:12.9]} 41. Kd5
{[%clk 0:00:51.6]} 41... Kf7 {[%clk 0:00:09.5]} 42. Ra7+ {[%clk 0:00:51.3]}
42... Kg8 {[%clk 0:00:09.7]} 43. Ke6 {[%clk 0:00:52.2]} 43... Ng4 {[%clk
0:00:08.3]} 44. Ra1 {[%clk 0:00:39.8]} 44... Kg7 {[%clk 0:00:08.1]} 45. Kd5
{[%clk 0:00:27.5]} 45... Kh6 {[%clk 0:00:07.5]} 46. Kc4 {[%clk 0:00:28.2]} 46...
Kg5 {[%clk 0:00:08]} 47. Kd3 {[%clk 0:00:29]} 47... Kf4 {[%clk 0:00:08.7]} 48.
Rf1+ {[%clk 0:00:29]} 48... Kg3 {[%clk 0:00:09.3]} 49. Ke2 {[%clk 0:00:29.7]}
49... Kg2 {[%clk 0:00:05.9]} 50. Ra1 {[%clk 0:00:16]} 50... h4 {[%clk
0:00:06.2]} 51. Ra2 {[%clk 0:00:16.9]} 51... h3 {[%clk 0:00:06.2]} 52. Ke1+
{[%clk 0:00:17.8]} 52... Kg1 {[%clk 0:00:05.7]} 53. Ra3 {[%clk 0:00:17.9]} 53...
Kg2 {[%clk 0:00:03.3]} 54. Ra2+ {[%clk 0:00:18.7]} 54... Kf3 {[%clk 0:00:03.2]}
55. Ra3+ {[%clk 0:00:18.3]} 55... Ne3 {[%clk 0:00:01.6]} 56. Kd2 {[%clk
0:00:16.7]} 56... h2 {[%clk 0:00:02.2]} 57. Rxe3+ {[%clk 0:00:17.4]} 57... Kg2
{[%clk 0:00:01.6]} 58. Re2+ {[%clk 0:00:17.9]} 58... Kg1 {[%clk 0:00:02.2]} 59.
Re1+ {[%clk 0:00:17.9]} 59... Kg2 {[%clk 0:00:02.8]} 60. Re2+ {[%clk 0:00:18.3]}
60... Kg1 {[%clk 0:00:01.4]} 61. Re1+ {[%clk 0:00:18.7]} 61... Kg2 {[%clk
0:00:02.1]} 62. Re2+ {[%clk 0:00:19.1]} 1/2-1/2